Cogmind - Beta 13 @@@ ROGUE MODE // 2024.07.16 @ 21:17:52 Player: CONM Result: Destroyed by G-47 Trooper with Particle Gun Performance ------------- Evolutions (2) 1000 Regions Visited (6) 1200 Robots Destroyed (86) 430 Value Destroyed (2796) 2796 Prototype IDs (2) 40 Alien Tech Used (0) 0 Bonus (1335) 1335 TOTAL SCORE: 6801 Bonus ------- High Alert Combat Kills 510 Follower Combat Kills 125 Entered Garrisons 200 Used RIF Installer 500 Cogmind --------- Core Integrity 0/550 Matter 27/300 Energy 99/100 System Corruption 73% Temperature Cool (9) Movement Core (50) Location -8/Materials Parts ------- > --- POWER (1) -------- (None) > --- PROPULSION (4) --- (None) > --- UTILITY (4) ------ (None) > --- WEAPON (2) ------- (None) > --- INVENTORY (5) ---- Large Storage Unit Signal Interpreter Seismic Detector Improved Targeting Computer EM Pulse Cannon Peak State ------------ > --- POWER ------------ Deuterium Engine > --- PROPULSION ------- Armored Treads Armored Treads Armored Treads Armored Treads > --- UTILITY ---------- Improved Heat Sink Large Storage Unit Structural Scanner Hardened Medium Armor Plating > --- WEAPON ----------- EM Pulse Cannon Ion Cannon > --- INVENTORY -------- Deuterium Engine Nuclear Core Small Storage Unit High-capacity Matter Pod Sensor Array Signal Interpreter Seismic Detector Improved Targeting Computer Core Shielding Reactive Plating Hardlight Generator High-powered Tractor Beam Battle Cannon Shock Bomb Launcher Makeshift Sword [Rating: 32] Favorites ----------- Power Ion Engine Engine Ion Engine Power Core Nuclear Core Propulsion Spiked Treads Treads Spiked Treads Leg Carbon-fiber Leg Utility Large Storage Unit Device Structural Scanner Storage Large Storage Unit Processor Machine Analyzer Protection Medium Armor Plating Weapon Subdweller Machine Gun Energy Cannon EM Pulse Cannon Ballistic Gun Subdweller Machine Gun Ballistic Cannon Battle Cannon Launcher Proton Missile Launcher Slashing Weapon Makeshift Sword Build | -11 -10 -10 -10 -8 -8 -8 ------- Run | Yrd Mat Min Sub Mat Gar Mat Slots Evolved 4 | . . . . 4 . . Power . | . . . . . . . Propulsion 2 | . . . . 2 . . Utility 2 | . . . . 2 . . Weapon . | . . . . . . . Parts Attached 80 | 8 4 3 16 27 10 12 Power 8 | 1 1 . 2 3 1 . Engine 7 | 1 1 . 2 2 1 . Core 1 | . . . . 1 . . Reactor . | . . . . . . . Propulsion 17 | 2 . 1 2 4 7 1 Treads 10 | 2 . 1 2 4 . 1 Leg 7 | . . . . . 7 . Wheel . | . . . . . . . Hover . | . . . . . . . Flight . | . . . . . . . Utility 19 | 3 3 1 3 4 . 5 Device 5 | 2 1 . 1 1 . . Storage 4 | 1 1 . . . . 2 Processor 1 | . . . . . . 1 Hackware . | . . . . . . . Protection 9 | . 1 1 2 3 . 2 Artifact . | . . . . . . . Weapon 36 | 2 . 1 9 16 2 6 Energy Gun . | . . . . . . . Energy Cannon 8 | . . . . 7 . 1 Ballistic Gun 9 | 2 . 1 5 . . 1 Ballistic Cannon 8 | . . . 2 3 . 3 Launcher 6 | . . . . 4 2 . Special Weapon . | . . . . . . . Impact Weapon . | . . . . . . . Slashing Weapon 5 | . . . 2 2 . 1 Piercing Weapon . | . . . . . . . Special Melee Weapon . | . . . . . . . Unidentified Prototypes . | . . . . . . . Corrupted Parts 7 | . . . . . 7 . System Corruption 70 | . . . . . 70 . Parts Lost 27 | . . 2 5 4 13 3 Power 1 | . . . 1 . . . Propulsion 13 | . . 1 1 1 7 3 Utility 7 | . . . 2 2 3 . Weapon 6 | . . 1 1 1 3 . Highest Loss Streak 5 | . . 1 2 2 5 2 To Critical Strikes . | . . . . . . . Average Slot Usage (%) 93 | . 100 99 98 85 59 28 Engine 12 | . 14 14 13 6 8 2 Treads 27 | . 28 28 27 30 8 5 Device 6 | . 13 . 6 10 2 . Storage 12 | . 14 14 14 9 9 8 Protection 6 | . . 13 6 8 6 . Ballistic Gun 17 | . 28 27 20 . . . Ballistic Cannon 4 | . . . 5 6 . 1 Slashing Weapon 1 | . . . 1 4 . 2 Naked Turns 18 | . . . . . . 18 Heaviest Build 58 | 12 33 35 40 58 56 40 Greatest Support 80 | 40 40 40 40 80 60 30 Greatest Overweight (x) 15 | . . . 1 1 15 5 Average Overweight (x) . | . . . . . 1 . Largest Inventory Capacity 15 | 8 15 15 15 15 15 15 Average Capacity 14 | 5 14 15 15 15 15 11 Most Carried 15 | 5 15 15 15 15 15 15 Average Carried 13 | 3 12 14 13 14 14 9 Final Capacity 15 | 8 15 15 15 15 15 5 Final Carried 15 | 5 15 15 13 15 13 5 Class Distribution -------------------- 87% | Mutant 10% | Derelict-Mutant Dominant Class ---------------- Mutant | -10/Materials Mutant | -10/Mines Mutant | -10/Subcaves Mutant | -8/Materials Mutant | -8/Garrison Mutant | -8/Materials Resources | -11 -10 -10 -10 -8 -8 -8 ----------- Run | Yrd Mat Min Sub Mat Gar Mat Matter Collected 1930 | 280 308 88 591 491 99 73 Remotely . | . . . . . . . Salvage Created 3345 | 108 211 118 441 1908 529 30 Parts 187 | 7 16 6 34 104 17 3 Haulers Intercepted 1 | . 1 . . . . . Recyclers Shooed . | . . . . . . . Parts Field Recycled . | . . . . . . . Retrieved Matter . | . . . . . . . Parts Self-Destructed 6 | . . . 6 . . . Prevented . | . . . . . . . Kills | -11 -10 -10 -10 -8 -8 -8 ------- Run | Yrd Mat Min Sub Mat Gar Mat Combat Hostiles Destroyed 69 | . 5 4 14 36 9 1 Guns 23 | . 5 4 14 . . . Cannons 15 | . . . . 14 . 1 AOE 24 | . . . . 19 5 . Classes Destroyed 17 | 2 4 . 4 6 1 . Worker 3 | . . . . 3 . . Builder 4 | . . . . 4 . . Tunneler 2 | 1 . 1 . . . . Hauler 1 | . 1 . . . . . Recycler 3 | 1 . . . 2 . . Operator 1 | . . . . 1 . . Turret 2 | . . . 2 . . . Watcher 1 | . 1 . . . . . Swarmer 15 | . 3 3 2 7 . . Grunt 28 | . 2 1 . 18 7 . Duelist 2 | . . . . . 2 . Protector 1 | . . . . 1 . . Sentry 9 | . . . 1 7 . 1 Hunter 2 | . . . . 2 . . Heavy 1 | . . . . 1 . . Artisan 1 | . . . 1 . . . Subdweller 11 | . . . 11 . . . Best Kill Streak 14 | 2 3 3 2 14 4 1 Combat Bots Only 12 | . 3 3 2 12 4 1 Max Kills in Single Turn 5 | 1 1 1 1 5 1 1 Gunslinging . | . . . . . . . Exploded 5 | . . . . 5 1 . Melee . | . . . . . . . Uniques/NPCs Destroyed . | . . . . . . . Combat | -11 -10 -10 -10 -8 -8 -8 -------- Run | Yrd Mat Min Sub Mat Gar Mat Hostile Shots Fired 557 | . 34 50 119 184 124 46 Missed 176 | . 12 14 46 56 31 17 Damage Taken 5786 | . 229 385 1139 1950 1617 466 Core 735 | . 26 44 113 134 290 128 Absorbed by Shields 77 | . . . . . 77 . Core Remaining (%) 63 | 100 . . 26 . . . Volleys Fired 255 | 5 12 31 121 61 18 7 Largest 2 | 2 2 2 2 2 2 2 Hottest 126 | 40 40 40 69 126 78 88 Shots Fired 450 | 10 24 46 234 98 25 13 Gun 293 | 10 24 46 211 . . 2 Cannon 109 | . . . 23 75 . 11 Launcher 48 | . . . . 23 25 . Special . | . . . . . . . Kinetic 358 | 10 24 46 234 31 . 13 Thermal 9 | . . . . 9 . . Explosive . | . . . . . . . Electromagnetic 83 | . . . . 58 25 . Robot Hit Streak 18 | 9 12 15 18 13 12 4 Robot Miss Streak 6 | . 1 2 2 2 2 6 Penetration Max . | . . . . . . . Secondary Targets 3 | . 1 . 2 . . . Max Gunslinging Chain 1 | . 1 . 1 . . . Shots Hit Robots 226 | 9 17 30 87 62 15 6 Core Hits 143 | 3 11 14 26 73 14 2 Critical Kills 2 | . . . 2 . . . Critical Parts Destroyed . | . . . . . . . Critical Strikes 7 | . . . 4 3 . . Destroy 4 | . . . 4 . . . Blast 2 | . . . . 2 . . Corrupt 1 | . . . . 1 . . Melee Attacks 39 | . . . 34 4 . 1 Impact . | . . . . . . . Slashing 39 | . . . 34 4 . 1 Piercing . | . . . . . . . Sneak Attacks . | . . . . . . . Combat Hostiles . | . . . . . . . Follow-up Attacks . | . . . . . . . Damage Inflicted 7241 | 98 194 265 1778 3646 1123 137 Guns 2213 | 98 194 265 1656 . . . Cannons 1454 | . . . 122 1195 . 137 Explosions 3539 | . . . . 2451 1088 . Melee . | . . . . . . . Ramming 35 | . . . . . 35 . Kinetic 2914 | 98 194 265 1778 442 . 137 Thermal 725 | . . . . 725 . . Explosive . | . . . . . . . Electromagnetic 3567 | . . . . 2479 1088 . Impact . | . . . . . . . Slashing . | . . . . . . . Piercing . | . . . . . . . Highest Corruption 73 | . . . . . 73 73 Average Corruption 59 | . . . . . 39 73 Corruption Purged . | . . . . . . . Corruption Blocked . | . . . . . . . Effects 45 | . . . . . 21 24 Message Errors 10 | . . . . . 4 6 Matter Fused 5 | . . . . . 2 3 Heat Flow Errors 1 | . . . . . . 1 Energy Discharges 7 | . . . . . 5 2 Parts Rejected 1 | . . . . . 1 . Data Loss (minor) 2 | . . . . . . 2 Alerts 2 | . . . . . . 2 Misdirections 16 | . . . . . 9 7 Weapon Failures 1 | . . . . . . 1 Overload Shots . | . . . . . . . Overflow Damage 30 | . . . . 14 16 . Projectiles . | . . . . . . . Explosions 30 | . . . . 14 16 . Melee . | . . . . . . . Knockbacks 4 | . . . 1 3 . . Impact . | . . . . . . . Kinetic 3 | . . . 1 2 . . Secondary 1 | . . . . 1 . . Self-Inflicted Damage 350 | . . . . 53 297 . Shots 24 | . . . . 5 19 . Rammed . | . . . . . . . Targets Rammed 10 | . . . . . 10 . Kicked 10 | . . . . . 10 . Crushed . | . . . . . . . Highest Temperature 162 | . 12 22 6 162 75 94 Average Temperature 31 | . 7 6 6 45 22 20 Received Heat Transfer 2220 | . 60 108 354 855 636 207 Siege Activations . | . . . . . . . Robots Corrupted 7 | . . . . 3 4 . Combat Hostiles 7 | . . . . 3 4 . Parts Fried 18 | . . . . 8 10 . Impact Corruptions . | . . . . . . . Robots Melted . | . . . . . . . Combat Hostiles . | . . . . . . . Parts Melted 1 | . . . 1 . . . Heat Transferred 1022 | . . . . 1022 . . Parts Sabotaged . | . . . . . . . Parts Stolen . | . . . . . . . Parts Stripped . | . . . . . . . Power Chain Reactions 10 | . . . . 10 . . Alert | -11 -10 -10 -10 -8 -8 -8 ------- Run | Yrd Mat Min Sub Mat Gar Mat Peak Influence 989 | 10 105 223 . 989 804 425 Initial 644 | . 6 40 . 191 644 382 Average 251 | 2 67 93 . 310 711 414 Maximum Alert Level 3 | . . 1 . 3 3 2 Low Security (%) 67 | 100 100 88 . 67 . . Level 1 4 | . . 11 . 1 . 20 Level 2 15 | . . . . 11 48 79 Level 3 12 | . . . . 19 51 . Level 4 . | . . . . . . . Level 5 . | . . . . . . . High Security . | . . . . . . . Max Security . | . . . . . . . Squads Dispatched 7 | . . . . 7 . . Investigation 3 | . . . . 3 . . Extermination . | . . . . . . . Reinforcement 3 | . . . . 3 . . Assault 1 | . . . . 1 . . Garrison . | . . . . . . . Intercept . | . . . . . . . Searches Triggered . | . . . . . . . Construction Impeded 1 | . . . . 1 . . Haulers Reinforced . | . . . . . . . Active Scanning Responses . | . . . . . . . Cargo Convoy Interrupts . | . . . . . . . Stealth | -11 -10 -10 -10 -8 -8 -8 --------- Run | Yrd Mat Min Sub Mat Gar Mat Distress Signals 5 | . 1 . . 3 . 1 Communications Jammed . | . . . . . . . Distress Signals . | . . . . . . . Times Spotted 134 | . 11 12 41 50 13 7 Peak Tracking Total 8 | . 4 3 3 8 4 3 Tactical Retreats 10 | . . 1 4 3 2 . Traps | -11 -10 -10 -10 -8 -8 -8 ------- Run | Yrd Mat Min Sub Mat Gar Mat Traps Triggered 9 | . . . . 2 7 . Indirectly 4 | . . . . . 4 . Trap Hack Attempts . | . . . . . . . Triggered . | . . . . . . . Disarmed . | . . . . . . . Reprogrammed . | . . . . . . . Reused . | . . . . . . . Traps Extracted . | . . . . . . . Installed . | . . . . . . . Triggered 3 | . . . . 1 2 . Machines | -11 -10 -10 -10 -8 -8 -8 ---------- Run | Yrd Mat Min Sub Mat Gar Mat Machines Disabled 6 | . . . 1 5 . . Max in Single Turn 2 | . . . 1 2 . . Machines Repaired . | . . . . . . . Machines Dismantled . | . . . . . . . Machines Sabotaged . | . . . . . . . Overloaded Fab Kills . | . . . . . . . Hacking | -11 -10 -10 -10 -8 -8 -8 --------- Run | Yrd Mat Min Sub Mat Gar Mat Machines Accessed 10 | . 3 . 1 6 . . Terminals 8 | . 3 . . 5 . . Fabricators . | . . . . . . . Repair Stations . | . . . . . . . Recycling Units . | . . . . . . . Scanalyzers . | . . . . . . . Garrison Access 1 | . . . . 1 . . Total Hacks 28 | . 7 . 3 18 . . Successful 12 | . 3 . 3 6 . . Failed 16 | . 4 . . 12 . . Catastrophic 3 | . 1 . . 2 . . Database Lockouts . | . . . . . . . Manual 16 | . 7 . . 9 . . Terminals 24 | . 7 . . 17 . . Fabricators . | . . . . . . . Repair Stations . | . . . . . . . Recycling Units . | . . . . . . . Scanalyzers . | . . . . . . . Garrison Access 1 | . . . . 1 . . Terminal Hacks 8 | . 2 . 3 3 . . Record 3 | . . . 3 . . . Prototype ID Bank 1 | . . . . 1 . . Branch Access Points 1 | . 1 . . . . . Terminal Index 2 | . 1 . . 1 . . Zone Layout 1 | . . . . 1 . . Fabricator Hacks . | . . . . . . . Repair Station Hacks . | . . . . . . . Recycling Unit Hacks . | . . . . . . . Scanalyzer . | . . . . . . . Garrison Access Hacks 1 | . . . . 1 . . Unlock Access 1 | . . . . 1 . . Unauthorized Hacks 3 | . 1 . . 2 . . Terminals 3 | . 1 . . 2 . . Botnet 3 | . 1 . . 2 . . Fabricators . | . . . . . . . Repair Stations . | . . . . . . . Recycling Units . | . . . . . . . Scanalyzers . | . . . . . . . Garrison Access . | . . . . . . . Data Cores Recovered 1 | . . . . 1 . . Used . | . . . . . . . Hacking Detections 8 | . 3 . . 5 . . Full Trace Events 1 | . . . . 1 . . Feedback Events . | . . . . . . . Feedback Blocked . | . . . . . . . Robot Schematics Acquired . | . . . . . . . Robots Built . | . . . . . . . Authchips . | . . . . . . . Time . | . . . . . . . Total Robot Build Rating . | . . . . . . . Part Schematics Acquired . | . . . . . . . Parts Built . | . . . . . . . Authchips . | . . . . . . . Time . | . . . . . . . Total Part Build Rating . | . . . . . . . Parts Repaired . | . . . . . . . Time . | . . . . . . . Parts Recycled . | . . . . . . . Recycled Matter . | . . . . . . . Retrieved Matter . | . . . . . . . Retrieved Components . | . . . . . . . Parts Scanalyzed . | . . . . . . . Part Schematics Acquired . | . . . . . . . Parts Damaged . | . . . . . . . Bothacking | -11 -10 -10 -10 -8 -8 -8 ------------ Run | Yrd Mat Min Sub Mat Gar Mat Used RIF Installer 1 | . . . . . 1 . Robots Hacked . | . . . . . . . Non-combat . | . . . . . . . Combat . | . . . . . . . Robot Hacks Applied . | . . . . . . . Relay Couplers Released . | . . . . . . . Fabnet Peak Effective % . | . . . . . . . Robots Rewired . | . . . . . . . Allies Hacked . | . . . . . . . Hacks Repelled . | . . . . . . . Allies | -11 -10 -10 -10 -8 -8 -8 -------- Run | Yrd Mat Min Sub Mat Gar Mat Total Allies 3 | . . 3 . . . . Largest Group 3 | . . 3 2 . . . Highest-Rated Group 40 | . . 40 32 . . . Highest-Rated Ally 16 | . . 16 16 . . . Total Orders 1 | . . . 1 . . . FOLLOW 1 | . . . 1 . . . Ally Attacks 33 | . . 17 16 . . . Total Damage 394 | . . 187 207 . . . Kills 8 | . . 5 3 . . . Allies Corrupted . | . . . . . . . Allies Melted . | . . . . . . . Intel | -11 -10 -10 -10 -8 -8 -8 ------- Run | Yrd Mat Min Sub Mat Gar Mat Robot Analysis Total . | . . . . . . . Derelict Logs Recovered 3 | . . 1 2 . . . Drone Launches . | . . . . . . . Drone Recoveries . | . . . . . . . Exploration | -11 -10 -10 -10 -8 -8 -8 ------------- Run | Yrd Mat Min Sub Mat Gar Mat Turns Passed 12402 | 171 773 913 7934 1899 339 373 Spaces Moved 6844 | 68 448 429 4668 857 136 238 Core 46 | 2 . . . . 6 38 Treads 6656 | 66 448 429 4668 857 55 133 Legs 142 | . . . . . 75 67 Wheels . | . . . . . . . Hover . | . . . . . . . Flight . | . . . . . . . Fastest Speed 50 | 50 160 160 160 160 120 50 Average Speed 163 | 156 160 160 160 187 186 133 Slowest Speed 800 | 160 160 160 260 260 800 300 Overloaded Moves . | . . . . . . . Propulsion Burnouts . | . . . . . . . Robots Hopped . | . . . . . . . Cave-ins Triggered . | . . . . . . . Exploration Rate (%) 51 | 6 56 79 98 66 31 21 Regions Visited 6 Branch Regions 2 Pre-discovered Areas . | . . . . . . . Known Exits Taken 2 | . 1 . . 1 . . Unknown Exits Taken 3 | 1 . 1 1 . . . Scrap Searched 15 | . . 1 14 . . . Spaces Dug 16 | . . . 10 5 . 1 Terrain Destroyed 43 | . . . 11 30 . 2 Melee 15 | . . . 10 4 . 1 Projectile 4 | . . . 1 2 . 1 AOE 24 | . . . . 24 . . Terrain Rammed . | . . . . . . . Walls Destroyed . | . . . . . . . Machines Disabled . | . . . . . . . Actions | -11 -10 -10 -10 -8 -8 -8 --------- Run | Yrd Mat Min Sub Mat Gar Mat Total 7601 | 121 484 619 4867 1049 185 276 Wait 266 | 34 3 152 15 59 3 . Move 6839 | 67 447 428 4667 857 135 238 Hop . | . . . . . . . Pick Up 60 | 6 13 3 5 20 . 13 Fast Attach 28 | 7 . 1 1 6 7 6 Attach 18 | . . 1 6 4 2 5 Detach 1 | . . . . . . 1 Swap 34 | 1 4 1 9 17 1 1 Drop 42 | 1 5 2 9 21 . 4 Fire 255 | 5 12 31 121 61 18 7 Melee 39 | . . . 34 4 . 1 Ram . | . . . . . . . Kick 10 | . . . . . 10 . Crush . | . . . . . . . Escape Stasis 9 | . . . . . 9 . Rewire . | . . . . . . . Trap . | . . . . . . . Miscellaneous . | . . . . . . . Route ------- -11/Scrapyard -10/Materials (discovered 2 exits: [*Mat] / *Min) -10/Mines (discovered 2 exits: [*Mat] / *Sub) -10/Subcaves (discovered 3 exits: *Mat x2 / [*Rec]) -8/Materials (discovered 4 exits: [*Fac x2] / [*Sto] / Gar) -8/Garrison -8/Materials History --------- Turn | Location | Event 37 | -11/Scrapyard | Discovered new exit (range 15) 172 | -11/Scrapyard | Entered Materials 313 | -10/Materials | Build established: Mutant 817 | -10/Materials | Discovered new exit (range 9) 846 | -10/Materials | Identified exit to Mines 945 | -10/Materials | Entered Mines 1229 | -10/Mines | Assisted by bots powering up and referring to "LRC-V3" 1324 | -10/Mines | Learned 2 Materials zone layouts 1465 | -10/Mines | Found a hidden stash of uninstalled traps 1623 | -10/Mines | Discovered new exit (range 9) 1655 | -10/Mines | A weapon hastily lodged in a ceiling crevice suddenly fell to the ground 1834 | -10/Mines | Discovered new exit (range 5) 1858 | -10/Mines | Entered Subcaves 1858 | -10/Subcaves | Accompanied by 2 allies 1916 | -10/Subcaves | Shifting Twisted Machinery released Battle Rifle 2007 | -10/Subcaves | Shifting Twisted Machinery released Piercing Trap 2014 | -10/Subcaves | Shifting Twisted Machinery released Sub. Machine Gun 2116 | -10/Subcaves | Discovered new exit (range 15) 2167 | -10/Subcaves | Visited Clippyterm 2172 | -10/Subcaves | Learned Factory fabricator intel 2525 | -10/Subcaves | Ambushed by Subdwellers from Twisted Machinery 2913 | -10/Subcaves | Learned 2 Materials zone layouts 3894 | -10/Subcaves | Discovered new exit (range 10) 3961 | -10/Subcaves | Learned Materials stockpile data 4351 | -10/Subcaves | Shifting Twisted Machinery released Flamer 4419 | -10/Subcaves | Core integrity fell below 50% 4435 | -10/Subcaves | Discovered new exit (range 16) 5805 | -10/Subcaves | Shifting Twisted Machinery released Flamer 7146 | -10/Subcaves | Disturbed a concealed Subdweller 9349 | -10/Subcaves | Build established: Derelict-Mutant 9792 | -10/Subcaves | Entered Materials 9792 | -8/Materials | Evolved 4 slots: Propulsion x2, Utility x2 10536 | -8/Materials | Discovered new exit (range 15) 10603 | -8/Materials | Build established: Mutant 10659 | -8/Materials | Discovered new exit (range 3) 11120 | -8/Materials | Destroyed 12 combat bots 11392 | -8/Materials | First assault squad dispatched 11460 | -8/Materials | Discovered new exit (range 7) 11691 | -8/Materials | Identified exit to Garrison 11691 | -8/Materials | Entered Garrison 11781 | -8/Garrison | Triggered checkpoint 11785 | -8/Garrison | Triggered checkpoint 11797 | -8/Garrison | Triggered checkpoint 11833 | -8/Garrison | Lost 4 parts (2n2u) 11842 | -8/Garrison | System corruption reached 10% 11884 | -8/Garrison | System corruption reached 30% 11924 | -8/Garrison | Core integrity fell below 50% 11973 | -8/Garrison | Lost 5 parts (3n2w) 11977 | -8/Garrison | Discovered new exit (range 12) 11985 | -8/Garrison | Installed Relay Interface Framework 12030 | -8/Garrison | Entered Materials 12129 | -8/Materials | Core integrity fell below 20% 12139 | -8/Materials | Released all parts (5) 12392 | -8/Materials | Released all parts (4) 12403 | -8/Materials | Destroyed by G-47 Trooper with Particle Gun Last Messages --------------- 12214_ Acquired Lrg. Storage Unit. 12220_ U-05 Engineer builds a Door. 12227_ Acquired Machine Analyzer. 12229_ System corrupted: Component data lost. 12291_ System corrupted: Heat flow error (+124). 12292_ K-01 Serf collects debris. 12307_ RJQ8WYIAEEAT1SYU6UU>DRHIVF ONNM=94CGUNF|W 12365_ K-01 Serf destroyed. 12371_ PVAVKT#T2 6OBARV67A T|MA2N8# #GM%1L 12372_ K-01 Serf collects debris. 12388_ Lgt. Treads destroyed. 12388_ G-47 Trooper destroyed. 12389_ System corrupted: Matter fused (-5). 12389_ K-01 Serf collects debris. 12392_ Released Assault Cannon. 12392_ Released Machine Analyzer. 12392_ Released Med. Storage Unit. 12392_ Released Shotgun. Map ----- +----------------------------------------------------+ | # # #?""S | | # + ############### # "" | | ## # # #????# # # | | # ###### #????# + + | | + #????# # # "" | | # #????# # # "" | | # ![ """ #????# # #? "" | | #####+## [[ """ #????# # #? | | ## # [[ !] [ """ ####### ! # #??## | | ## """ # # # !# #???? | | ## """ #! !* + # # +???? | | ## """ #%=!== / # ########## #???? | | ## """ #* %%[ * []!! # #????????# #???? | | ## # # ##### # #????????" #???? | | ##? [ # # !!! #???# # #???????? #???? | | ##+?#### #!][!!!#???# # #????????# #???? | | "## #???# ##!! !##???# #######????????# #???? | | ## #???# #######????# #??????????????# #???? | | ## #???# #??????????# #??????????????? ????? | | ## #???# #??????????# #??????????????????????? | | ## #???# #??????????# g#??????????????????????? | | ## #???# #??????????# #??????????????????????? | | ## ##### ############ ##############?????????? | | # a k m a ????????? | | + ????????? | | # @k ????????? | | ### #### #### #####+###############?????????? | | #?# #??# #??# #?????????????????????????????? | | #?# #??# #??# #?????????????????????????????? | | #?# #??# #??# #?????????????????????????????? | | ##?# #??# #??# #?????????????????????????????? | | ??? #??# #??# #?????????????????????????????? | | ???###??# #??# #?????????????????????????????? | | ????????# #??# #?????????????????????????????? | | ????????# #??# #?????????????????????????????? | | ????????# #??# #?????????????????????????????? | | ????????# #??# #?????????????????????????????? | | ???????? #??# #?????????????????????????????? | | ????????? ???? ??????????????????????????????? | | ?????????????????????????????????????????????????? | | ?????????????????????????????????????????????????? | | ?????????????????????????????????????????????????? | | ?????????????????????????????????????????????????? | | ?????????????????????????????????????????????????? | | ?????????????????????????????????????????????????? | | ?????????????????????????????????????????????????? | | ?????????????????????????????????????????????????? | | ?????????????????????????????????????????????????? | | ?????????????????????????????????????????????????? | | ?????????????????????????????????????????????????? | +----------------------------------------------------+ Best States ------------- Heat Dissipation 45 Energy Generation 16 Energy Capacity 290 Matter Stores 300 Matter Capacity 300 Sight Range 16 Robot Scan Range 14 Terrain Scan Range 16 Terrain Scan Density 10 Armor Coverage 800 Evasion (%) 55 Recoil Reduction 4 Item Schematics ----------------- None Robot Schematics ------------------ None Fabricated ------------ Nothing Alien Tech Used ----------------- None Achievements -------------- Z1$+NX3F=JRE3_ZNQR Challenges ------------ None Game ------ Seed ChargeSignalInterrupter Manual? 0 Play Time 01:21:42 Cumulative 44.8 hours Start 2024.07.07 @ 16:14:03 End 2024.07.16 @ 21:17:52 Sessions 3 Manual Loads 0 Difficulty Rogue Special Mode None Game No. 69 Rogue 69 Adventurer 0 Explorer 0 Win Type - Total 0 Types 0/0/0/0/0/0/0/0/0 Lore% 27 Gallery% 28 Achievement% 33 Wizard Run 0 Options --------- Layout 0 ASCII 0 Keyboard 0 Movement Arrows Keybinds 0 Fullscreen 2 Font 18/SmallcapsGlow Map View 76x50 Zoom Use 0% Tactical HUD 1 Map Filters NONE Filters NONE Steam 1 RUN: 2d9cf3fb-779c-44e7-9ff8-4a2c93340127